bitfinex/quotes_ETHUSD_20220103
["timestamp","ask_amount","ask_price","bid_price","bid_amount"]
[1641170015231,0.00170527,3808.6,3808.5,1.05954]
[1641170015635,0.00170527,3808.6,3808.5,0.6]
[1641170015894,0.00170527,3808.6,3808.5,2.1167566]
[1641170018893,0.00170527,3808.6,3808.5,3.1167566]
[1641170019095,0.00170527,3808.6,3808.5,8.65529424]
[1641170019292,0.00170527,3808.6,3808.5,3.15529424]
[1641170019743,2.88423748,3808.9,3808.6,6.6]
[1641170019941,0.05652586,3809.0,3808.6,1.378315]
[1641170020145,0.05652586,3809.0,3808.7,1.69322853]
[1641170020146,0.00113685,3808.8,3808.7,1.69322853]
[1641170020343,0.00113685,3808.8,3808.7,0.99322853]
[1641170020544,0.00113685,3808.8,3808.7,2.25635]
[1641170021443,0.00113685,3808.8,3808.7,0.6]
[1641170021644,0.00113685,3808.8,3808.6,0.721975]
[1641170023045,0.00113685,3808.8,3808.7,0.3]
[1641170026109,0.00113685,3808.8,3808.7,0.33079926]
[1641170029155,0.00113685,3808.8,3808.7,0.03079926]
[1641170031286,0.00113685,3808.8,3808.7,0.33079926]
[1641170034389,0.00113685,3808.8,3808.7,0.23079926]
[1641170034846,0.00113685,3808.8,3808.6,0.3]
[1641170035447,0.00113685,3808.8,3808.6,0.4312997]
[1641170035852,0.65655,3808.8,3808.6,0.3]
[1641170036048,0.65655,3808.8,3808.5,0.3]
[1641170036247,0.65655,3808.8,3808.2,1.3222094]
[1641170036549,3.51132247,3808.7,3808.6,0.00113685]
[1641170036948,3.51132247,3808.7,3808.0,0.00454739]
[1641170037150,0.65665,3808.4,3807.8,0.00568424]
[1641170037348,2.21167556,3808.3,3807.9,0.00511582]
[1641170037552,2.25291832,3808.3,3808.1,0.03080246]
[1641170037748,2.45139354,3808.6,3808.1,0.03080246]
[1641170037948,2.45139354,3808.6,3808.2,0.00341055]
[1641170038807,7.10666,3808.3,3808.2,0.00341055]
[1641170039010,9.41467607,3808.3,3808.2,0.00341055]
[1641170039206,10.41467607,3808.3,3808.2,0.00341055]
[1641170039609,9.41467607,3808.3,3808.2,0.00341055]
[1641170040308,3.96467607,3808.3,3808.2,0.00341055]
[1641170040511,3.96467607,3808.3,3807.0,0.05641954]
[1641170040512,7.43468982,3808.3,3807.0,0.05641954]
[1641170040708,0.65685,3807.6,3807.0,0.05641954]
[1641170040915,0.65685,3807.6,3807.1,0.00625265]
[1641170041512,2.457067,3808.0,3807.1,0.00625265]
[1641170041709,1.457067,3808.0,3807.3,0.45971]
[1641170041907,2.457067,3808.0,3807.3,0.45971]
[1641170042141,2.457067,3808.0,3807.4,0.00454738]
[1641170042342,2.457067,3808.0,3807.4,0.30454738]
[1641170042547,2.98341375,3807.9,3807.4,0.30454738]
[1641170042741,2.98341375,3807.9,3807.5,0.00397896]
[1641170043545,1.08385781,3807.8,3807.5,0.00397896]
[1641170043940,1.74058781,3807.8,3807.5,0.00397896]
[1641170044345,2.98341375,3807.7,3807.4,0.00454738]
[1641170044545,2.98341375,3807.7,3807.2,0.46540423]
[1641170044744,2.98341375,3807.7,3807.3,0.1313462]
[1641170044945,2.98341375,3807.7,3807.3,0.13646201]
[1641170045244,2.98341375,3807.7,3807.4,0.00454738]
[1641170045902,2.98341375,3807.7,3807.5,1.39689348]
[1641170046304,2.98341375,3807.7,3807.6,0.00341054]
[1641170047103,2.98341375,3808.1,3807.7,0.45965]
[1641170047303,2.98341375,3808.1,3807.8,0.131327]
[1641170047501,2.98341375,3808.1,3807.8,0.43360069]
[1641170047706,2.98341375,3808.1,3807.9,0.00170527]
[1641170048907,0.65664,3808.3,3807.9,0.00170527]
[1641170049508,0.65664,3808.3,3807.9,0.59266857]
[1641170049741,2.98341375,3808.2,3808.0,0.3]
[1641170049942,2.98341375,3808.2,3808.0,0.30113684]
[1641170050244,2.98341375,3808.2,3808.1,0.3]
[1641170051246,2.9845506,3808.4,3808.1,0.3]
[1641170051444,2.9845506,3808.4,3808.1,0.75963]
[1641170051845,2.98341375,3808.2,3808.1,0.75963]
[1641170052443,2.9845506,3808.4,3808.1,0.75963]
[1641170054907,2.9845506,3808.4,3808.1,1.87837314]
[1641170056410,0.00113685,3808.4,3808.1,1.87837314]
[1641170056613,0.00113685,3808.4,3808.1,1.90972124]
[1641170056808,0.00113685,3808.4,3808.2,0.91906]
[1641170057171,0.00113685,3808.4,3808.2,1.25608785]
[1641170057769,0.00113685,3808.4,3808.2,1.38737995]
[1641170057971,0.00113685,3808.4,3808.2,1.3503521]
[1641170058172,0.00113685,3808.4,3808.2,1.21906]
[1641170059677,0.00113685,3808.4,3808.2,1.3503701]
[1641170060074,0.00113685,3808.4,3808.2,1.21906]
[1641170062899,0.00113685,3808.4,3808.2,1.3503672]
[1641170063399,2.9845506,3808.4,3808.2,1.3503672]
[1641170063998,0.00113685,3808.4,3808.2,1.3503672]
[1641170064203,0.00113685,3808.4,3808.2,1.21906]
[1641170065649,2.9845506,3808.4,3808.2,1.21906]
[1641170066250,0.00113685,3808.4,3808.2,1.21906]
[1641170066754,2.9845506,3808.4,3808.2,1.21906]
[1641170067449,0.00113685,3808.4,3808.2,1.21906]
[1641170075909,2.9845506,3808.4,3808.2,1.21906]
[1641170076402,0.00113685,3808.4,3808.2,1.21906]
[1641170079203,2.98341375,3808.8,3808.2,1.21906]
[1641170079507,0.00284212,3808.7,3808.5,0.1313042]
[1641170079951,0.0022737,3808.6,3808.5,0.1313042]
[1641170085204,2.98568745,3808.6,3808.5,0.1313042]
[1641170089856,2.98568745,3808.6,3808.4,0.69392]
[1641170089857,2.98568745,3808.6,3808.4,0.39392]
[1641170090253,0.00170528,3808.5,3808.4,0.39392]
[1641170090553,0.00170528,3808.5,3808.3,0.78783]
[1641170090752,0.65833528,3808.5,3808.3,0.78783]
[1641170091000,0.00113685,3808.4,3808.3,1.08783]
[1641170091793,2.9845506,3808.4,3808.3,1.08783]
[1641170093797,0.00113685,3808.4,3808.3,1.08783]
[1641170096657,2.9845506,3808.4,3808.3,1.08783]
[1641170097459,0.00113685,3808.4,3808.3,1.08783]
[1641170097867,2.9845506,3808.4,3808.3,1.08783]
[1641170098512,0.00113685,3808.4,3808.3,1.08783]
[1641170098712,0.00113685,3808.4,3808.3,0.20738332]
[1641170098908,0.00113685,3808.4,3808.2,0.9192813]
[1641170099509,0.00113685,3808.4,3808.3,0.78783]
[1641170100112,0.00113685,3808.4,3808.3,1.08783]
[1641170101810,2.9845506,3808.4,3808.3,1.08783]
[1641170113508,0.00113685,3808.4,3808.3,1.08783]
[1641170115512,2.9845506,3808.4,3808.3,1.08783]
[1641170116310,0.00113685,3808.4,3808.3,1.08783]
[1641170116815,1.69587747,3808.8,3808.3,1.08783]
[1641170117015,1.69587747,3808.8,3808.4,2.26482296]
[1641170117268,4.26741122,3810.0,3808.5,8.6748]
[1641170117465,4.90520104,3809.4,3808.8,0.65624]
[1641170117664,4.90520104,3809.4,3808.6,6.26248]
[1641170117665,1.49127206,3809.4,3808.9,0.381]
[1641170117864,0.00170527,3809.0,3808.9,1.33728]
[1641170118665,0.00170527,3809.0,3808.9,2.70574654]
[1641170118864,3.41392898,3809.7,3809.0,2.9]
[1641170119067,1.03514499,3810.1,3809.3,0.65628]
[1641170119266,0.00341054,3809.6,3809.3,0.65628]
[1641170119670,0.00284212,3809.5,3809.3,1.18131]
[1641170120067,0.0022737,3809.4,3809.3,3.25948715]
[1641170121910,0.0022737,3809.4,3809.3,1.2187984]
[1641170122110,0.0022737,3809.4,3809.3,1.25033524]
[1641170122310,0.0022737,3809.4,3809.3,3.32128423]
[1641170123712,0.0022737,3809.4,3809.3,0.85656684]
[1641170126554,0.0022737,3809.4,3809.3,0.55656684]
[1641170126756,0.0022737,3809.4,3809.3,0.52503]
[1641170126955,0.0022737,3809.4,3808.9,0.03236188]
[1641170127353,0.00170527,3809.3,3808.9,0.03236188]
[1641170127554,1.71437039,3809.3,3809.0,0.26261]
[1641170127755,0.65771685,3809.2,3809.0,0.26261]
[1641170128421,0.00113685,3809.2,3809.0,0.26261]
[1641170131911,0.65762685,3809.2,3809.0,0.26261]
[1641170132758,0.00113685,3809.2,3809.0,0.26261]
[1641170135359,0.65761685,3809.2,3809.0,0.26261]
[1641170137609,2.98207864,3809.1,3809.0,0.26261]
[1641170138809,2.98207864,3809.1,3808.9,0.33236188]
[1641170140061,4.26803899,3809.1,3808.9,0.33236188]
[1641170141363,2.98207864,3809.0,3808.9,0.33236188]
[1641170142967,2.98207864,3809.0,3808.9,0.03236188]
[1641170143169,2.98207864,3809.0,3808.9,2.0]
[1641170143410,2.98207864,3809.0,3808.9,2.3]
[1641170144411,0.00113685,3809.2,3809.0,0.3]
[1641170145815,0.00113685,3809.2,3808.9,2.0]
[1641170146215,0.65760685,3809.2,3808.9,2.0]
[1641170146615,1.65760685,3809.2,3808.9,2.0]
[1641170146824,5.2506,3809.1,3808.5,0.00113684]
[1641170147018,1.0,3809.0,3808.5,0.00113684]
[1641170147271,6.56397,3808.9,3808.3,0.00397896]
[1641170147467,0.65669,3808.6,3808.3,0.00397896]
[1641170147668,0.65669,3808.6,3807.8,0.00682108]
[1641170147868,1.18288415,3808.2,3807.8,0.00682108]
[1641170148169,1.31332,3808.5,3807.8,0.00682108]
[1641170148967,1.27162009,3808.4,3807.6,0.00795793]
[1641170149169,0.65666,3808.1,3807.6,0.00795793]
[1641170149568,0.65666,3808.1,3807.6,0.30795793]
[1641170149972,0.65666,3808.1,3807.7,0.0073895]
[1641170150912,4.81325,3808.2,3807.5,2.0397256]
[1641170151110,0.00170527,3808.0,3807.5,0.00113685]
[1641170151312,3.5,3808.2,3807.3,0.981]
[1641170151313,0.00227369,3808.1,3807.3,0.981]
[1641170151510,0.65771134,3807.9,3807.4,2.11328713]
[1641170151710,0.00170527,3808.0,3807.4,1.26265302]
[1641170152109,0.00113684,3807.9,3807.4,3.30518185]
[1641170152308,0.00113684,3807.9,3807.4,1.26265302]
[1641170152508,0.00170527,3808.0,3807.4,1.26265302]
[1641170152708,0.6565747,3807.7,3807.4,1.26265302]
[1641170152912,0.6565747,3807.7,3807.5,2.04566187]
[1641170153311,0.00113684,3807.9,3807.5,2.04566187]
[1641170153913,0.2594,3807.6,3807.4,3.29615248]
[1641170154112,0.9159889,3807.6,3807.4,1.26265302]
[1641170154312,0.9159889,3807.6,3807.4,3.32474738]
[1641170154519,0.9159889,3807.6,3807.5,6.23954217]
[1641170154764,0.2594,3807.6,3807.5,6.23954217]
[1641170155566,0.2594,3807.6,3807.5,6.18954217]
[1641170155763,0.2594,3807.6,3807.5,6.84606217]
[1641170156766,0.2594,3807.8,3807.5,6.84606217]
[1641170157366,0.2594,3807.8,3807.6,1.0]
[1641170157666,0.2594,3807.8,3807.7,5.29808375]
[1641170158068,0.2594,3807.8,3807.7,7.55458375]
[1641170158267,0.2594,3807.8,3807.7,5.5065]
[1641170158712,0.2594,3807.8,3807.7,3.9065]
[1641170158905,0.2594,3807.8,3807.7,4.2065]
[1641170159106,0.2594,3807.8,3807.7,4.5065]
[1641170159309,0.2594,3807.8,3807.7,5.5065]
[1641170159511,0.2594,3807.8,3807.7,7.66810459]
[1641170161413,0.2594,3807.8,3807.7,8.04910459]
[1641170161613,0.05628601,3808.5,3807.8,7.85]
[1641170161811,0.05628601,3808.5,3808.2,0.65637]
[1641170162010,0.05628601,3808.5,3808.3,0.381]
[1641170162455,0.05628601,3808.5,3808.4,0.99836319]
[1641170162652,0.05628601,3808.5,3808.4,1.37936319]
[1641170162854,0.05969656,3808.5,3808.4,1.37936319]
[1641170163253,0.00341055,3808.5,3808.4,1.37936319]
[1641170163855,0.00341055,3808.5,3808.4,2.33574319]
[1641170165656,0.00341055,3808.5,3808.4,2.63574319]
[1641170166730,0.00341055,3808.5,3808.4,2.33574319]
[1641170167731,0.00341055,3808.5,3808.4,2.63574319]
[1641170168739,0.00341055,3808.5,3808.4,4.74291692]
[1641170168936,0.00341055,3808.5,3808.4,5.69291692]
[1641170168937,2.98529047,3808.5,3808.4,5.69291692]
[1641170169962,2.98529047,3808.5,3808.4,5.69649246]
[1641170170561,0.00341055,3808.5,3808.4,5.69649246]
[1641170171763,1.10752447,3809.3,3808.4,5.69649246]
[1641170171764,3.41392898,3810.3,3809.4,1.76385327]
[1641170171967,1.54551194,3809.7,3809.6,4.77017366]
[1641170172163,4.26741122,3810.9,3809.6,4.77017366]
[1641170172164,2.5692132,3810.1,3809.6,6.18409972]
[1641170172361,2.5692132,3810.1,3809.6,6.48409972]
[1641170172563,0.00797112,3810.1,3809.8,7.85]
[1641170172767,0.00797112,3810.1,3810.0,8.89599994]
[1641170172962,3.41392898,3810.4,3810.0,1.42699994]
[1641170173165,0.00113685,3810.1,3810.0,3.03899994]
[1641170173437,3.30806583,3811.2,3810.1,7.88913865]
[1641170173625,3.30806583,3811.2,3810.2,5.139]
[1641170173825,0.00113685,3810.3,3810.2,7.114]
[1641170174024,0.00113685,3810.3,3810.2,7.414]
[1641170174226,1.18667302,3811.2,3810.6,1.20132304]
[1641170174426,6.06113685,3811.5,3810.6,1.20132304]
[1641170174427,9.56113685,3811.5,3810.7,2.47379384]
[1641170174629,0.00454739,3811.1,3810.8,0.3]
[1641170174828,0.66052819,3811.1,3810.9,0.381]
[1641170175027,0.00397896,3811.0,3810.9,0.381]
[1641170175228,0.00397896,3811.0,3810.9,0.3845732]
[1641170176329,0.00397896,3811.0,3810.9,2.42068214]
[1641170176628,0.00397896,3811.0,3810.9,0.3845732]
[1641170180585,0.00397896,3811.0,3810.9,2.43853465]
[1641170181020,0.00397896,3811.0,3810.9,0.3845732]
[1641170183518,0.00397896,3811.0,3810.9,2.42290069]
[1641170183719,0.00397896,3811.0,3810.9,0.3845732]
[1641170184762,0.00397896,3811.0,3810.9,2.43029204]
[1641170185974,0.00397896,3811.0,3810.9,3.08618204]
[1641170187563,0.00397896,3811.0,3810.9,4.03342052]
[1641170191118,0.00397896,3811.0,3810.9,5.82147882]
[1641170196915,0.00397896,3811.0,3810.9,3.08618204]
[1641170197715,0.00397896,3811.0,3810.9,18.39618204]
[1641170197918,0.00397896,3811.0,3810.9,21.47432069]
[1641170199673,0.00397896,3811.0,3810.9,3.81502865]
[1641170200476,0.00397896,3811.0,3810.9,2.03689]
[1641170201575,0.00397896,3811.0,3810.9,4.08017459]
[1641170201774,0.00397896,3811.0,3810.9,2.03689]
[1641170202375,0.00397896,3811.0,3810.9,3.45454494]
[1641170202676,0.00397896,3811.0,3810.9,2.03689]
[1641170204122,0.00397896,3811.0,3810.9,3.48979861]
[1641170204520,0.00397896,3811.0,3810.9,3.52522265]
[1641170204720,0.00397896,3811.0,3810.9,3.52069465]
[1641170204920,1.3118491,3811.5,3810.9,3.52069465]
[1641170205119,1.3118491,3811.5,3811.2,0.65588]
[1641170205320,0.66212906,3811.4,3811.2,0.65588]
[1641170205521,0.66212906,3811.4,3811.3,1.41301484]
[1641170205719,0.6558764,3811.4,3811.3,1.41301484]
[1641170206520,0.6558764,3811.4,3811.3,1.71301484]
[1641170206921,0.6558764,3811.4,3811.3,1.41301484]
[1641170210954,1.72784632,3812.1,3811.6,0.65584]
[1641170211152,1.72784632,3812.1,3811.7,0.381]
[1641170211349,1.72784632,3812.1,3811.8,0.381]
[1641170211550,2.38360632,3812.1,3811.9,0.381]
[1641170211752,2.38360632,3812.1,3811.7,0.2]
[1641170211957,2.38360632,3812.1,3811.8,0.381]
[1641170212149,2.38360632,3812.1,3811.5,0.681]
[1641170212150,1.72784632,3812.1,3811.5,0.681]
[1641170212351,1.31936036,3812.3,3811.7,1.07925254]
[1641170212655,1.97805792,3812.1,3811.7,1.07925254]
[1641170213051,0.0096632,3812.0,3811.4,0.2074]
[1641170213250,0.6559489,3811.9,3811.4,0.2074]
[1641170213449,0.00909477,3811.9,3811.4,0.2074]
[1641170213649,0.00852635,3811.8,3811.4,0.2074]
[1641170214048,0.00795793,3811.7,3811.4,0.2074]
[1641170214450,1.39531721,3811.5,3811.4,0.2074]
[1641170214965,1.40213829,3811.5,3811.4,0.2074]
[1641170215961,1.40213829,3811.5,3811.1,1.51913]
[1641170216165,0.6559387,3811.4,3811.1,1.51913]
[1641170216361,0.66219136,3811.4,3811.1,1.51913]
[1641170216562,0.00568423,3811.3,3811.1,1.51913]
[1641170217063,0.00511581,3811.2,3811.0,3.08779495]
[1641170217268,1.97300721,3811.2,3811.0,2.08779495]
[1641170217465,0.00454739,3811.1,3811.0,2.08779495]
[1641170217664,0.00454739,3811.1,3811.0,3.08779495]
[1641170217866,0.00454739,3811.1,3811.0,0.3]
[1641170218066,0.00454739,3811.1,3810.9,1.45339495]
[1641170218268,0.00454739,3811.1,3810.9,0.93889495]
[1641170218528,2.4726914,3811.2,3810.9,0.93889495]
[1641170218529,0.00397896,3811.0,3810.9,0.93889495]
[1641170218727,4.15,3810.9,3810.6,2.73841389]
[1641170218927,4.15,3810.9,3810.3,3.57557749]
[1641170218928,4.2062061,3810.9,3810.3,3.57557749]
[1641170219128,1.3124323,3810.6,3810.3,3.57557749]
[1641170219329,1.9124323,3810.6,3810.4,1.7753199]
[1641170219533,0.00113684,3810.5,3810.4,1.7753199]
[1641170219932,0.00113684,3810.5,3809.4,1.76385327]
[1641170220130,2.67587623,3810.1,3809.4,1.76385327]
[1641170220330,1.312412,3810.1,3809.5,0.00454739]
[1641170221731,0.656206,3809.9,3809.5,0.00454739]
[1641170223176,0.656206,3809.9,3809.6,0.1093]
[1641170223576,0.656206,3809.9,3809.7,0.00341054]
[1641170226317,0.656206,3809.9,3809.8,0.1093]
[1641170226718,0.656206,3809.9,3809.8,0.11214212]
[1641170226919,0.656143,3810.1,3809.8,0.11214212]
[1641170227224,0.656143,3810.1,3809.9,0.0022737]
[1641170227420,1.31342284,3810.5,3809.9,0.0022737]
[1641170228020,0.6560953,3810.4,3809.9,0.0022737]
[1641170228221,0.00113684,3810.5,3809.9,0.0022737]
[1641170229019,0.65739684,3810.5,3809.9,0.0022737]
[1641170229221,1.77572871,3810.2,3809.9,0.0022737]
[1641170229420,1.77572871,3810.2,3810.0,0.1093]
[1641170229421,1.3125774,3810.1,3810.0,0.1093]
[1641170229881,1.3125774,3810.1,3810.0,0.11100527]
[1641170241120,0.656281,3810.3,3810.0,0.11100527]
[1641170241523,0.656281,3810.3,3810.1,0.00113685]
[1641170242121,2.35055924,3810.2,3810.1,0.00113685]
[1641170242921,2.35055924,3810.2,3810.1,0.11043685]
[1641170244122,0.656281,3810.3,3810.1,0.11043685]
[1641170244324,0.656281,3810.3,3810.1,1.44066182]
[1641170246889,0.656281,3810.3,3810.2,17.53130614]
[1641170246890,8.1e-05,3810.3,3810.2,17.53130614]
[1641170247098,0.00113684,3810.5,3810.2,19.9419386]
[1641170247288,0.00113684,3810.5,3810.2,17.82993246]
[1641170247487,0.00113684,3810.5,3810.3,1.63516136]
[1641170247688,0.00113684,3810.5,3810.4,23.491]
[1641170248090,0.00113684,3810.5,3810.4,24.491]
[1641170248292,0.00113684,3810.5,3810.4,25.78643191]
[1641170249024,0.00113684,3810.5,3810.4,17.98643191]
[1641170249424,0.05597884,3810.8,3810.4,19.76175181]
[1641170249626,0.05597884,3810.8,3810.5,3.79554155]
[1641170249826,0.05597884,3810.8,3810.6,1.0369]
[1641170250024,0.05597884,3810.8,3810.7,2.11832232]
[1641170250224,0.05597884,3810.8,3810.7,2.49932232]
[1641170250425,0.05882095,3810.8,3810.7,3.60862232]
[1641170250830,0.05882095,3810.8,3810.7,3.90862232]
[1641170251029,0.05882095,3810.8,3810.7,5.39514665]
[1641170251227,0.00284211,3810.8,3810.7,5.39514665]
[1641170252184,0.00284211,3810.8,3810.7,5.69514665]
[1641170253975,0.00284211,3810.8,3810.7,3.90862232]
[1641170254177,0.00284211,3810.8,3810.7,2.60862232]
[1641170254477,0.00284211,3810.8,3810.7,0.1093]
[1641170255076,0.00284211,3810.8,3810.6,0.1093]
[1641170255278,0.00284211,3810.8,3810.7,1.78648446]
[1641170255479,1.312111,3811.0,3810.7,1.78648446]
[1641170255930,1.312111,3811.0,3810.6,0.1093]
[1641170257027,0.6560534,3810.9,3810.6,0.1093]
[1641170257427,0.00284211,3810.8,3810.6,0.1093]
[1641170257827,0.6560534,3810.9,3810.6,0.1093]
[1641170257828,0.00227369,3810.7,3810.6,0.1093]
[1641170258230,0.00227369,3810.7,3810.6,1.44933225]
[1641170258533,0.00227369,3810.7,3810.6,1.34003225]
[1641170258932,0.00227369,3810.7,3810.5,0.1093]
[1641170259130,0.65833269,3810.7,3810.5,0.1093]
[1641170259329,0.00170527,3810.6,3810.5,0.1093]
[1641170261077,0.00170527,3810.6,3810.5,0.76533]
[1641170261876,0.00170527,3810.6,3810.5,1.06533]
[1641170262080,0.00170527,3810.6,3810.5,3.09456537]
[1641170262277,0.00170527,3810.6,3810.5,3.39456537]
[1641170262480,0.00170527,3810.6,3810.5,4.39456537]
[1641170262982,0.00170527,3810.6,3810.5,4.77556537]
[1641170263182,0.00170527,3810.6,3810.5,4.80786992]
[1641170263443,0.00170527,3810.6,3810.5,2.78606744]
[1641170263832,0.00170527,3810.6,3810.5,4.56387146]
[1641170264034,0.00170527,3810.6,3810.5,6.34367117]
[1641170264234,0.00170527,3810.6,3810.5,11.10167117]
[1641170264735,0.00170527,3810.6,3810.5,11.09689968]
[1641170265033,0.00170527,3810.6,3810.5,11.09660728]
[1641170265432,0.00170527,3810.6,3810.5,9.61012282]
[1641170265634,0.00170527,3810.6,3810.5,9.2796499]
[1641170266035,0.00170527,3810.6,3810.5,9.61745258]
[1641170266238,0.00170527,3810.6,3810.5,9.31061133]
[1641170266437,0.00170527,3810.6,3810.5,9.2796499]
[1641170266735,0.00170527,3810.6,3810.5,9.31342362]
[1641170266935,0.00170527,3810.6,3810.5,9.61342362]
[1641170267182,0.00170527,3810.6,3810.5,9.31569946]
[1641170267382,0.00170527,3810.6,3810.5,9.31687407]
[1641170267583,0.00170527,3810.6,3810.5,9.61687407]
[1641170267784,0.00170527,3810.6,3810.5,9.30982548]
[1641170267982,0.00170527,3810.6,3810.5,9.31717929]
[1641170268184,0.00170527,3810.6,3810.5,9.2796499]
[1641170268583,0.00170527,3810.6,3810.5,9.31353073]
[1641170268789,0.00170527,3810.6,3810.5,9.2796499]
[1641170269184,0.00170527,3810.6,3810.5,11.05683654]
[1641170269684,0.00170527,3810.6,3810.5,9.28151664]
[1641170270686,0.00170527,3810.6,3810.5,9.95234775]
[1641170270925,0.00170527,3810.6,3810.5,11.72449932]
[1641170271126,0.00170527,3810.6,3810.5,27.03449932]
[1641170274526,0.00170527,3810.6,3810.5,11.72449932]
[1641170274986,0.00170527,3810.6,3810.5,9.94917942]
[1641170275180,0.00170527,3810.6,3810.5,24.62717942]
[1641170275381,0.00170527,3810.6,3810.5,26.40249932]
[1641170276182,0.00170527,3810.6,3810.5,11.09249932]
[1641170277183,0.00170527,3810.6,3810.5,26.40249932]
[1641170277581,0.00170527,3810.6,3810.5,28.20089017]
[1641170279537,0.00170527,3810.6,3810.5,12.85522739]
[1641170279737,0.00170527,3810.6,3810.5,9.2796499]
[1641170280139,0.00170527,3810.6,3810.5,7.6796499]
[1641170280540,0.00170527,3810.6,3810.5,5.90433]
[1641170280738,0.00170527,3810.6,3810.5,7.92213738]
[1641170281540,0.00170527,3810.6,3810.5,9.52213738]
[1641170281746,0.00170527,3810.6,3810.5,12.20405174]
[1641170283481,0.00170527,3810.6,3810.5,9.52213738]
[1641170284084,0.00170527,3810.6,3810.5,11.30449789]
[1641170284484,0.00170527,3810.6,3810.5,9.52213738]
[1641170285785,0.00170527,3810.6,3810.5,24.83213738]
[1641170286230,0.00170527,3810.6,3810.5,26.60745728]
[1641170287431,0.00170527,3810.6,3810.5,11.29745728]
[1641170288030,0.00170527,3810.6,3810.5,9.52213738]
[1641170289233,1.3117425,3811.3,3810.5,9.52213738]
[1641170289437,1.3117425,3811.3,3810.9,0.65587]
[1641170289684,0.66098201,3811.2,3810.9,2.67358091]
[1641170289887,0.66098201,3811.2,3811.0,0.1093]
[1641170290087,0.00454739,3811.1,3811.0,1.1093]
[1641170290385,0.00454739,3811.1,3811.0,0.1093]
[1641170290587,0.00454739,3811.1,3811.0,1.1093]
[1641170291389,0.00454739,3811.1,3811.0,2.44601091]
[1641170295126,0.00454739,3811.1,3811.0,1.1093]
[1641170296524,0.00454739,3811.1,3811.0,2.44601091]
[1641170297881,0.00454739,3811.1,3811.0,1.4403]
[1641170298380,0.00454739,3811.1,3811.0,2.77701091]
[1641170299483,0.00454739,3811.1,3811.0,1.4403]
[1641170299685,0.00454739,3811.1,3811.0,0.4403]
[1641170299880,0.00454739,3811.1,3811.0,0.7403]
[1641170300281,0.00454739,3811.1,3811.0,0.4403]
[1641170302729,0.00454739,3811.1,3811.0,1.77701091]
[1641170303133,0.00454739,3811.1,3811.0,2.77701091]
[1641170305080,0.00454739,3811.1,3811.0,1.4403]
[1641170305283,0.00454739,3811.1,3811.0,2.22258122]
[1641170305680,0.00454739,3811.1,3811.0,3.22258122]
[1641170306882,2.36715652,3811.1,3811.0,1.4403]
[1641170307085,2.36715652,3811.1,3811.0,0.4403]
[1641170308282,2.36715652,3811.1,3811.0,0.0593]
[1641170310435,4.49895971,3811.1,3811.0,0.0593]
[1641170310633,2.36715652,3811.1,3811.0,0.0593]
[1641170313885,4.49855035,3811.1,3811.0,0.0593]
[1641170314187,1.9683592,3811.0,3810.7,0.05597796]
[1641170314384,2.30478187,3810.9,3810.7,0.05597796]
[1641170314583,2.30819241,3810.9,3810.5,1.34094904]
[1641170314782,0.00284211,3810.8,3810.5,1.34094904]
[1641170314984,0.65618,3810.7,3810.5,1.34094904]
[1641170315182,0.65845369,3810.7,3810.4,1.34094904]
[1641170315388,0.00170527,3810.6,3810.4,1.34094904]
[1641170315585,1.97024137,3810.6,3810.4,1.34094904]
[1641170315783,0.00113684,3810.5,3810.4,1.34094904]
[1641170316236,0.00113684,3810.5,3810.1,1.34094904]
[1641170316637,1.3123561,3810.4,3810.1,1.34094904]
[1641170317038,1.18784275,3810.3,3810.1,1.34094904]
[1641170318043,2.36260913,3810.2,3810.1,1.34094904]
[1641170319239,1.18784275,3810.3,3809.9,1.0]
[1641170319441,1.3122588,3810.2,3809.7,0.65614]
[1641170319691,1.18784275,3810.3,3810.0,0.00170527]
[1641170320688,1.3122575,3810.2,3810.0,0.00170527]
[1641170321085,1.3122575,3810.2,3810.0,0.38270527]
[1641170321283,0.6561267,3810.3,3810.0,0.38270527]
[1641170321484,0.6561267,3810.3,3810.1,0.00113685]
[1641170322087,0.6561267,3810.3,3810.1,0.65716685]
[1641170322485,1.3121967,3810.3,3810.1,0.65716685]
[1641170322684,1.3121967,3810.3,3810.1,0.00113685]
[1641170324032,1.3121967,3810.3,3810.2,0.381]
[1641170329084,1.3121967,3810.3,3810.1,1.78341807]
[1641170332330,1.3121967,3810.3,3810.1,1.73341807]
[1641170336686,1.3121967,3810.3,3810.1,2.38947807]
[1641170336687,0.6561267,3810.3,3810.1,2.38947807]
[1641170337289,0.00113684,3810.5,3810.2,2.43245847]
[1641170337687,0.00170527,3810.4,3810.3,8.40592]
[1641170337886,0.00170527,3810.4,3810.3,11.92057753]
[1641170338085,0.00170527,3810.4,3810.3,13.52057753]
[1641170338289,0.00170527,3810.4,3810.3,5.77057753]
[1641170338522,0.00170527,3810.4,3810.3,3.62732]
[1641170338930,0.00170527,3810.4,3810.3,5.64204618]
[1641170339822,0.00170527,3810.4,3810.3,8.32406591]
[1641170340223,0.00170527,3810.4,3810.3,6.30933973]
[1641170340422,0.00170527,3810.4,3810.3,4.70933973]
[1641170341024,0.00170527,3810.4,3810.3,6.69826278]
[1641170341224,0.00170527,3810.4,3810.3,2.02732]
[1641170341423,0.00170527,3810.4,3810.3,1.03692]
[1641170341628,0.00170527,3810.4,3810.3,3.32854775]
[1641170341824,0.00170527,3810.4,3810.3,4.32854775]
[1641170343981,0.00170527,3810.4,3810.3,2.33692]
[1641170344983,0.00170527,3810.4,3810.3,3.67289491]
[1641170345383,0.00170527,3810.4,3810.3,2.37289491]
[1641170346037,0.00170527,3810.4,3810.3,1.03692]
[1641170348236,0.00170527,3810.4,3810.3,1.0404938]
[1641170349037,0.00170527,3810.4,3810.3,1.3404938]
[1641170349237,0.00170527,3810.4,3810.3,4.38702079]
[1641170350085,0.00170527,3810.4,3810.3,2.3404938]
[1641170350384,0.00170527,3810.4,3810.3,4.33276126]
[1641170350584,0.00170527,3810.4,3810.3,2.3404938]
[1641170351186,0.00170527,3810.4,3810.3,4.36086461]
[1641170351988,0.00170527,3810.4,3810.3,4.32968777]
[1641170352987,0.00170527,3810.4,3810.3,6.11098765]
[1641170353431,0.00170527,3810.4,3810.3,6.11865299]
[1641170353631,0.00170527,3810.4,3810.3,4.33735311]
[1641170355831,0.00170527,3810.4,3810.3,2.3404938]
[1641170358081,0.00170527,3810.4,3810.3,4.12307599]
[1641170358482,0.00170527,3810.4,3810.3,6.11149332]
[1641170359280,0.00170527,3810.4,3810.3,2.3404938]
[1641170359883,0.00170527,3810.4,3810.3,4.34886388]
[1641170360485,0.00170527,3810.4,3810.3,2.3404938]
[1641170361332,0.00170527,3810.4,3810.3,4.1230867]
[1641170361739,0.00170527,3810.4,3810.3,2.3404938]